fUSD/lending_fUSD_20250814
["ID","MTS","AMOUNT","RATE_DAILY","PERIOD"]
[379192002,1755181839087,-305.25,0.00021171,2]
[379192003,1755181839096,-2546.63,0.00021186,2]
[379192004,1755181839105,-2546.63,0.00021197,2]
[379192005,1755181839115,-2987.43198373,0.00021204,2]
[379192006,1755181839128,-2546.63,0.00021208,2]
[379192007,1755181839138,-500.0,0.00021215,2]
[379192008,1755181839147,-2546.63,0.00021219,2]
[379192009,1755181839156,-2546.63,0.0002123,2]
[379192010,1755181839166,-500.0,0.00021233,2]
[379192011,1755181839176,-2546.63,0.00021242,2]
[379192012,1755181839185,-2546.63,0.00021253,2]
[379192013,1755181839195,-2546.63,0.00021264,2]
[379192014,1755181839204,-500.0,0.0002127,2]
[379192015,1755181839213,-2546.63,0.00021275,2]
[379192016,1755181839223,-2546.63,0.00021286,2]
[379192017,1755181839232,-2082.88987108,0.00021294,2]
[379192018,1755181839242,-2546.63,0.00021297,2]
[379192019,1755181839529,-2546.63,0.00021309,2]
[379192020,1755181839581,-2546.63,0.0002132,2]
[379192021,1755181839591,-500.0,0.00021325,2]
[379192022,1755181839601,-2546.63,0.00021331,2]
[379192023,1755181839611,-163.03,0.00021339,2]
[379192025,1755181839625,-2546.63,0.00021342,2]
[379192026,1755181839635,-2546.63,0.00021353,2]
[379192027,1755181839644,-1685.44670823,0.00021361,2]
[379192028,1755181839654,-2546.63,0.00021364,2]
[379192029,1755181839664,-2546.63,0.00021375,2]
[379192030,1755181839674,-500.0,0.0002138,2]
[379192031,1755181839683,-2546.63,0.00021387,2]
[379192032,1755181839693,-500.0,0.00021435,2]
[379192033,1755181839702,-500.0,0.0002149,2]
[379192034,1755181839711,-500.0,0.00021545,2]
[379192036,1755181839721,-500.0,0.00021562,2]
[379192037,1755181839730,-500.0,0.000216,2]
[379192038,1755181839739,-500.0,0.00021655,2]
[379192039,1755181839748,-1493.18386654,0.00021699,2]
[379192040,1755181839758,-500.0,0.0002171,2]
[379192041,1755181839767,-3000.0,0.00021712,2]
[379192042,1755181839777,-304.1,0.00021781,2]
[379192043,1755181839786,-161.0,0.00021874,3]
[379192044,1755181839796,-552.80096187,0.00021882,2]
[379192045,1755181839806,-5000.0,0.00021918,2]
[379192046,1755181839815,-747.31,0.00022,2]
[379192047,1755181839825,-808.19,0.00022037,2]
[379192048,1755181839835,-170.0,0.00022258,7]
[379192049,1755181839845,-3500.0,0.0002226,2]
[379192050,1755181839855,-167.02,0.00022278,2]
[379192051,1755181839865,-2751.0,0.00022333,2]
[379192052,1755181839876,-1492.46,0.0002234,2]
[379192053,1755181839886,-313.75622024,0.00022368,2]
[379192054,1755181839895,-200.0,0.00022402,2]
[379192055,1755181839905,-239.0,0.00022466,2]
[379192056,1755181839914,-164.81,0.00022527,2]
[379192057,1755181839924,-250.0,0.00022628,2]
[379192058,1755181839933,-1493.18386654,0.00022632,2]
[379192059,1755181839942,-4000.0,0.00022808,2]
[379192060,1755181839952,-150.0,0.00022816,2]
[379192061,1755181839963,-257.33661569,0.0002292,2]
[379192062,1755181839973,-4000.0,0.00022982,4]
[379192063,1755181839982,-491.1642901,0.00023,5]
[379192064,1755181839992,-301.81454927,0.00023024,2]
[379192065,1755181840007,-740.5,0.00023086,2]
[379192066,1755181840017,-500.0,0.00023123,2]
[379192067,1755181840026,-346.29248285,0.00023128,2]
[379192068,1755181840036,-390.77041642,0.00023232,2]
[379192069,1755181840046,-500.0,0.00023294,2]
[379192070,1755181840056,-435.24835,0.00023335,2]
[379192071,1755181840066,-587.08266183,0.00023356,2]
[379192072,1755181840077,-2045.91,0.00023368,2]
[379192073,1755181840087,-8889.3,0.00023368,2]
[379192074,1755181840096,-552.80096187,0.00023373,2]
[379192075,1755181840106,-479.72628358,0.00023439,2]
[379192077,1755181840116,-412.42,0.00023479,2]
[379192078,1755181840128,-10031.52,0.00023479,2]
[379192080,1755181840138,-524.20421715,0.00023543,2]
[379192083,1755181840148,-1493.18386654,0.00023565,2]
[379192084,1755181840157,-1000.0,0.00023584,2]
[379192086,1755181840168,-6166.59,0.00023636,2]
[379192089,1755181840178,-568.68215073,0.00023647,2]
[379192091,1755181840188,-1000.0,0.00023726,2]
[379192092,1755181840197,-613.16008431,0.00023751,2]
[379192094,1755181840207,-657.63801788,0.00023855,2]
[379192096,1755181840217,-207.4,0.00023899,2]
[379192099,1755181840226,-191.53,0.00023954,2]
[379192101,1755181840236,-702.11595146,0.00023959,2]
[379192102,1755181840246,-964.22,0.00023964,2]
[379192105,1755181840256,-1000.0,0.00023964,2]
[379192107,1755181840265,-5000.00784803,0.00024,5]
[379192109,1755181840275,-503.0,0.00024,2]
[379192111,1755181840285,-504.0,0.00024,2]
[379192113,1755181840295,-746.59388504,0.00024063,2]
[379192115,1755181840304,-313.75622024,0.00024103,2]
[379192117,1755181840314,-791.07181861,0.00024167,2]
[379192119,1755181840323,-747.31,0.00024181,2]
[379192121,1755181840333,-1000.0,0.00024202,2]
[379192122,1755181840342,-164.81,0.00024245,2]
[379192125,1755181840352,-150.0,0.00024258,2]
[379192126,1755181840361,-835.54975219,0.00024271,2]
[379192128,1755181840371,-195.25,0.00024333,2]
[379192130,1755181840380,-880.02768577,0.00024374,2]
[379192132,1755181840390,-924.50561934,0.00024478,2]
[379192134,1755181840399,-808.19,0.00024485,2]
[379192136,1755181840408,-1493.18386654,0.00024498,2]
[379192138,1755181840419,-968.98355292,0.00024582,2]
[379192140,1755181840428,-1000.0,0.00024616,2]
[379192142,1755181840437,-503.0,0.00024622,2]
[379192144,1755181840447,-412.42,0.00024653,2]
[379192146,1755181840457,-150.0,0.00024654,2]
[379192149,1755181840466,-1000.0,0.00024658,2]
[379192151,1755181840476,-2674.31,0.00024681,2]
[379192152,1755181840485,-1013.4614865,0.00024686,2]
[379192154,1755181840495,-262.84,0.00024776,2]
[379192156,1755181840505,-1057.93942007,0.0002479,2]
[379192159,1755181840515,-261050.173934,0.000248,2]
[379192160,1755181840524,-552.80096187,0.00024863,2]
[379192163,1755181840534,-4000.0,0.00024873,4]
[379192165,1755181840545,-265666.708033,0.000249,2]
[379192167,1755181840554,-150.0,0.00025205,2]
[379192169,1755181840564,-503.0,0.00025244,3]
[379192171,1755181840574,-223.94547447,0.00025281,2]
[379192173,1755181840584,-263.4367718,0.0002532,2]
[379192175,1755181840593,-1493.18386654,0.00025431,2]
[379192177,1755181840603,-308.96905334,0.00025435,2]
[379192179,1755181840614,-1000.0,0.00025505,2]
[379192181,1755181840626,-1000.0,0.00025545,2]
[379192183,1755181840635,-354.50133489,0.0002555,2]
[379192185,1755181840645,-400.03361644,0.00025665,2]
[379192187,1755181840654,-195.24,0.00025667,2]
[379192189,1755181840665,-150.0,0.00025774,2]
[379192191,1755181840675,-445.56589798,0.00025779,2]
[379192193,1755181840687,-168.16829438,0.00025779,2]
[379192195,1755181840698,-4873.3,0.00025786,2]
[379192197,1755181840707,-150.99,0.00025786,2]
[379192199,1755181840716,-8183.57,0.00025786,2]
[379192201,1755181840726,-9999.99,0.00025786,2]
[379192203,1755181840736,-150.99,0.00025786,2]
[379192205,1755181840745,-9999.99,0.00025786,2]
[379192207,1755181840754,-9999.99,0.00025786,2]
[379192209,1755181840764,-412.42,0.00025827,2]
[379192211,1755181840773,-313.75622024,0.00025837,2]
[379192213,1755181840783,-369.7797607,0.00025847,2]
[379192215,1755181840793,-1000.0,0.00025851,2]
[379192217,1755181840802,-503.0,0.00025867,3]
[379192219,1755181840812,-491.09817953,0.00025894,2]
[379192221,1755181840821,-150.0,0.00025909,2]
[379192223,1755181840831,-150.0,0.00025959,2]
[379192225,1755181840841,-150.0,0.00025966,2]
[379192227,1755181840851,-500.0,0.00026,2]
[379192229,1755181840861,-536.63046107,0.00026009,2]
[379192231,1755181840872,-156.76335285,0.00026028,2]
[379192233,1755181840882,-150.0,0.00026048,2]
[379192235,1755181840892,-150.0,0.00026069,2]
[379192237,1755181840901,-150.0,0.00026095,2]
[379192239,1755181840911,-500.0,0.00026097,2]
[379192241,1755181840921,-582.16274262,0.00026124,2]
[379192243,1755181840930,-150.0,0.00026131,2]
[379192245,1755181840940,-150.0,0.00026155,2]
[379192247,1755181840949,-208.0,0.0002621,2]
[379192249,1755181840958,-444.0,0.0002621,2]
[379192251,1755181840968,-627.69502416,0.00026239,2]
[379192253,1755181840977,-150.0,0.0002626,2]
[379192255,1755181840986,-150.0,0.00026266,2]
[379192257,1755181840998,-150.0,0.0002629,2]
[379192259,1755181841008,-150.0,0.00026291,2]
[379192261,1755181841017,-1000.0,0.00026294,2]
[379192263,1755181841027,-1000.0,0.00026313,2]
[379192265,1755181841036,-150.0,0.00026327,2]
[379192267,1755181841046,-673.22730571,0.00026354,2]
[379192269,1755181841056,-552.80096187,0.00026354,2]
[379192271,1755181841065,-150.0,0.00026357,2]
[379192273,1755181841076,-150.0,0.00026362,2]
[379192275,1755181841087,-747.31,0.00026362,7]
[379192277,1755181841096,-1493.18386654,0.00026364,2]
[379192279,1755181841106,-2500.0,0.00026387,2]
[379192281,1755181841117,-1000.0,0.00026395,2]
[379192283,1755181841130,-150.0,0.000264,2]
[379192285,1755181841141,-150.0,0.00026414,2]
[379192287,1755181841150,-740.5,0.00026417,2]
[379192289,1755181841160,-150.0,0.00026441,2]
[379192291,1755181841170,-150.0,0.00026459,2]
[379192293,1755181841180,-718.75958725,0.00026468,2]
[379192295,1755181841190,-150.0,0.00026484,2]
[379192297,1755181841200,-150.0,0.00026487,2]
[379192299,1755181841209,-300.0,0.00026487,2]
[379192301,1755181841219,-600.0,0.00026487,2]
[379192303,1755181841229,-160.0,0.00026487,2]
[379192305,1755181841238,-9274.81107495,0.00026487,2]
[379192307,1755181841248,-500.0,0.00026487,2]
[379192309,1755181841257,-151.0,0.00026487,2]
[379192311,1755181841266,-3000.0,0.00026487,2]
[379192313,1755181841276,-3000.0,0.00026487,2]
[379192315,1755181841285,-500.0,0.00026487,2]
[379192317,1755181841295,-3000.0,0.00026487,2]
[379192318,1755181841304,-500.0,0.00026487,2]
[379192319,1755181841313,-500.0,0.00026487,2]
[379192320,1755181841323,-2000.0,0.00026487,2]
[379192321,1755181841332,-500.0,0.00026487,2]
[379192322,1755181841341,-500.0,0.00026487,2]
[379192323,1755181841352,-2500.0,0.00026487,2]
[379192324,1755181841361,-500.0,0.00026487,2]
[379192325,1755181841373,-500.0,0.00026487,2]
[379192326,1755181841383,-2500.0,0.00026487,2]
[379192327,1755181841392,-500.0,0.00026487,2]
[379192328,1755181841401,-1498.81287235,0.00026487,2]
[379192329,1755181841410,-500.0,0.00026487,2]
[379192330,1755181841419,-500.0,0.00026487,2]
[379192331,1755181841428,-250.0,0.00026487,2]
[379192332,1755181841437,-250.0,0.00026487,2]
[379192333,1755181841446,-250.0,0.00026487,2]
[379192334,1755181841455,-250.0,0.00026487,2]
[379192335,1755181841464,-250.0,0.00026487,2]
[379192337,1755181841474,-209.40437684,0.00026487,2]
[379192339,1755181841483,-151.0,0.00026487,2]
[379192341,1755181841493,-250.0,0.00026487,2]
[379192343,1755181841503,-250.0,0.00026487,2]
[379192345,1755181841512,-250.0,0.00026487,2]
[379192347,1755181841523,-250.0,0.00026487,2]
[379192349,1755181841533,-1000.0,0.00026487,2]
[379192351,1755181841543,-250.0,0.00026487,2]
[379192353,1755181841554,-250.0,0.00026487,2]
[379192355,1755181841563,-200.0,0.00026487,2]
[379192357,1755181841574,-200.0,0.00026487,2]
[379192359,1755181841584,-500.0,0.00026487,2]
[379192361,1755181841594,-277.35679052,0.00026487,2]
[379192363,1755181841604,-500.0,0.00026487,2]
[379192365,1755181841614,-200.0,0.00026487,2]
[379192367,1755181841627,-200.0,0.00026487,2]
[379192369,1755181841637,-500.0,0.00026487,2]
[379192371,1755181841647,-200.0,0.00026487,2]
[379192373,1755181841657,-500.0,0.00026487,2]
[379192375,1755181841667,-151.0,0.00026487,2]
[379192377,1755181841677,-200.0,0.00026487,2]
[379192380,1755181841687,-200.0,0.00026487,2]
[379192381,1755181841696,-151.0,0.00026487,2]
[379192384,1755181841706,-200.0,0.00026487,2]
[379192386,1755181841716,-151.0,0.00026487,2]
[379192388,1755181841726,-500.0,0.00026487,2]
[379192390,1755181841735,-200.0,0.00026487,2]
[379192392,1755181841744,-151.0,0.00026487,2]
[379192394,1755181841753,-500.0,0.00026487,2]
[379192396,1755181841762,-200.0,0.00026487,2]
[379192398,1755181841774,-151.0,0.00026487,2]
[379192400,1755181841783,-500.0,0.00026487,2]
[379192402,1755181841793,-500.0,0.00026487,2]
[379192404,1755181841803,-200.0,0.00026487,2]
[379192406,1755181841813,-151.0,0.00026487,2]
[379192408,1755181841822,-151.0,0.00026487,2]
[379192410,1755181841832,-500.0,0.00026487,2]
[379192412,1755181841842,-200.0,0.00026487,2]
[379192414,1755181841851,-151.0,0.00026487,2]
[379192416,1755181841861,-500.0,0.00026487,2]
[379192418,1755181841873,-200.0,0.00026487,2]
[379192420,1755181841882,-200.0,0.00026487,2]
[379192422,1755181841891,-151.0,0.00026487,2]
[379192424,1755181841901,-500.0,0.00026487,2]
[379192426,1755181841910,-200.0,0.00026487,2]
[379192428,1755181841919,-151.0,0.00026487,2]
[379192430,1755181841928,-200.0,0.00026487,2]
[379192432,1755181841938,-151.0,0.00026487,2]
[379192434,1755181841947,-200.0,0.00026487,2]
[379192436,1755181841956,-151.0,0.00026487,2]
[379192438,1755181841965,-151.0,0.00026487,2]
[379192440,1755181841974,-200.0,0.00026487,2]
[379192442,1755181841985,-151.0,0.00026487,2]
[379192444,1755181841996,-200.0,0.00026487,2]
[379192446,1755181842006,-151.0,0.00026487,2]
[379192448,1755181842015,-200.0,0.00026487,2]
[379192450,1755181842025,-1000.0,0.00026487,2]
[379192452,1755181842035,-151.0,0.00026487,2]
[379192454,1755181842044,-1000.0,0.00026487,2]
[379192456,1755181842054,-1000.0,0.00026487,2]
[379192458,1755181842063,-747.6894304,0.00026487,2]
[379192460,1755181842072,-500.0,0.00026487,2]
[379192461,1755181842082,-500.0,0.00026487,2]
[379192463,1755181842091,-500.0,0.00026487,2]
[379192465,1755181842101,-500.0,0.00026487,2]
[379192467,1755181842110,-500.0,0.00026487,2]
[379192469,1755181842120,-500.0,0.00026487,2]
[379192471,1755181842132,-500.0,0.00026487,2]
[379192472,1755181842142,-500.0,0.00026487,2]
[379192474,1755181842151,-500.0,0.00026487,2]
[379192476,1755181842161,-500.0,0.00026487,2]
[379192478,1755181842170,-500.0,0.00026487,2]
[379192480,1755181842179,-500.0,0.00026487,2]
[379192482,1755181842188,-500.0,0.00026487,2]
[379192484,1755181842197,-500.0,0.00026487,2]
[379192486,1755181842207,-500.0,0.00026487,2]
[379192488,1755181842216,-500.0,0.00026487,2]
[379192490,1755181842226,-500.0,0.00026487,2]
[379192492,1755181842235,-500.0,0.00026487,2]
[379192494,1755181842245,-500.0,0.00026487,2]
[379192496,1755181842255,-500.0,0.00026487,2]
[379192498,1755181842265,-500.0,0.00026487,2]
[379192500,1755181842274,-500.0,0.00026487,2]
[379192502,1755181842284,-500.0,0.00026487,2]
[379192504,1755181842294,-500.0,0.00026487,2]
[379192506,1755181842304,-500.0,0.00026487,2]
[379192508,1755181842314,-500.0,0.00026487,2]
[379192510,1755181842324,-500.0,0.00026487,2]
[379192512,1755181842334,-500.0,0.00026487,2]
[379192514,1755181842344,-500.0,0.00026487,2]
[379192516,1755181842354,-500.0,0.00026487,2]
[379192518,1755181842367,-500.0,0.00026487,2]
[379192520,1755181842381,-500.0,0.00026487,2]
[379192522,1755181842391,-500.0,0.00026487,2]
[379192524,1755181842400,-503.0,0.00026489,4]
[379192526,1755181842410,-150.0,0.00026499,2]
[379192528,1755181842419,-150.0,0.00026507,2]
[379192530,1755181842429,-160.58,0.0002652,2]
[379192532,1755181842438,-9617.97908473,0.00026542,2]
[379192534,1755181842448,-150.0,0.00026558,2]
[379192536,1755181842457,-764.2918688,0.00026583,2]
[379192538,1755181842467,-9973.84431086,0.00026597,2]
[379192540,1755181842476,-824.0,0.000266,2]
[379192542,1755181842486,-150.0,0.0002662,2]
[379192544,1755181842495,-150.0,0.00026635,2]
[379192546,1755181842504,-215.0738,0.00026638,2]
[379192548,1755181842514,-1647.9304511,0.00026652,2]
[379192550,1755181842523,-235.89,0.00026676,2]
[379192552,1755181842533,-809.82415034,0.00026698,2]
[379192554,1755181842542,-150.0,0.00026722,2]
[379192556,1755181842552,-150.0,0.00026744,2]
[379192558,1755181842561,-4000.0,0.00026763,4]
[379192560,1755181842571,-150.0,0.00026781,2]
[379192563,1755181842580,-150.0,0.00026792,2]
[379192565,1755181842590,-2800.0,0.000268,9]
[379192568,1755181842599,-855.35643189,0.00026813,2]
[379192570,1755181842609,-150.0,0.00026829,2]
[379192572,1755181842618,-797.99,0.00026849,2]
[379192574,1755181842629,-150.0,0.00026867,2]
[379192576,1755181842639,-150.0,0.00026871,2]
[379192578,1755181842648,-1000.0,0.00026873,2]
[379192581,1755181842658,-150.0,0.00026896,2]
[379192583,1755181842667,-500.0,0.000269,9]
[379192585,1755181842676,-1000.0,0.0002691,2]
[379192587,1755181842686,-900.88871344,0.00026928,2]
[379192589,1755181842695,-150.0,0.00026933,2]
[379192591,1755181842704,-150.0,0.00026934,2]
[379192593,1755181842714,-150.0,0.00026952,2]
[379192595,1755181842723,-150.0,0.00026956,2]
[379192597,1755181842733,-1000.0,0.0002696,2]
[379192599,1755181842742,-807.84183992,0.00026988,2]
[379192601,1755181842752,-161.84343304,0.00026989,2]
[379192603,1755181842761,-150.0,0.00026995,2]
[379192605,1755181842770,-150.0,0.00026999,2]
[379192607,1755181842780,-1001.0,0.00027,2]
[379192609,1755181842788,-1000.0,0.00027,2]
[379192611,1755181842798,-1000.0,0.00027,3]
[379192613,1755181842807,-1000.0,0.00027,3]
[379192615,1755181842817,-1000.0,0.00027,3]
[379192617,1755181842826,-246.0,0.00027,7]
[379192619,1755181842835,-412.42,0.00027001,2]
[379192621,1755181842845,-150.0,0.00027001,2]
[379192623,1755181842854,-150.0,0.00027002,2]
[379192625,1755181842863,-150.0,0.00027035,2]
[379192627,1755181842873,-600.0,0.00027035,2]
[379192629,1755181842884,-151.0,0.00027035,2]
[379192631,1755181842894,-151.0,0.00027035,2]
[379192633,1755181842903,-151.0,0.00027035,2]
[379192635,1755181842913,-150.0,0.0002704,2]
[379192637,1755181842922,-946.42099498,0.00027042,2]
[379192639,1755181842931,-150.0,0.00027043,2]
[379192641,1755181842941,-150.0,0.00027071,2]
[379192643,1755181842950,-150.0,0.00027072,2]
[379192645,1755181842960,-150.0,0.00027078,2]
[379192647,1755181842969,-150.0,0.00027087,2]
[379192649,1755181842978,-150.0,0.00027092,2]
[379192651,1755181842987,-150.0,0.00027094,2]
[379192653,1755181842999,-150.0,0.00027096,2]
[379192655,1755181843008,-1722.54,0.000271,2]
[379192657,1755181843018,-150.0,0.00027101,2]
[379192659,1755181843027,-150.0,0.00027101,2]
[379192661,1755181843037,-503.0,0.00027111,5]
[379192663,1755181843047,-150.0,0.00027119,2]
[379192665,1755181843056,-7000.0,0.0002712,2]
[379192666,1755181843065,-150.0,0.00027122,2]
[379192669,1755181843075,-117700.27497227,0.0002713,2]
[379192671,1755181843086,-150.0,0.00027134,2]
[379192672,1755181843095,-150.0,0.00027138,2]
[379192675,1755181843105,-150.0,0.0002714,2]
[379192677,1755181843114,-150.0,0.00027142,2]
[379192679,1755181843125,-150.0,0.00027142,2]
[379192681,1755181843135,-150.0,0.00027151,2]
[379192682,1755181843144,-991.95327653,0.00027157,2]
[379192685,1755181843154,-150.0,0.00027157,2]
[379192687,1755181843164,-150.0,0.00027159,2]
[379192690,1755181843174,-1000.0,0.00027164,2]
[379192692,1755181843183,-150.0,0.00027164,2]
[379192695,1755181843192,-178.0,0.00027164,120]
[379192697,1755181843202,-150.0,0.00027166,2]
[379192698,1755181843211,-150.0,0.00027183,2]
[379192700,1755181843220,-396668.89397874,0.00027183,2]
[379192703,1755181843230,-150.0,0.00027186,2]
[379192704,1755181843239,-150.0,0.00027207,2]
[379192706,1755181843248,-1000.0,0.00027225,2]
[379192709,1755181843258,-150.0,0.00027225,2]
[379192711,1755181843267,-150.0,0.00027242,2]
[379192713,1755181843276,-150.0,0.00027247,2]
[379192715,1755181843286,-152.64,0.0002726,2]
[379192717,1755181843296,-538.17,0.0002726,2]
[379192719,1755181843305,-360.13,0.0002726,2]
[379192721,1755181843314,-360.13,0.0002726,2]
[379192723,1755181843324,-360.13,0.0002726,2]
[379192725,1755181843333,-150.0,0.00027261,2]
[379192727,1755181843342,-807.84183992,0.00027262,2]
[379192729,1755181843353,-150.0,0.0002727,2]
[379192732,1755181843362,-1037.48555807,0.00027272,2]
[379192734,1755181843374,-150.0,0.00027277,2]
[379192736,1755181843383,-150.0,0.00027283,2]
[379192738,1755181843392,-150.0,0.00027284,2]
[379192740,1755181843402,-1000.0,0.00027285,2]
[379192742,1755181843411,-300.0,0.00027286,10]
[379192744,1755181843421,-300.0,0.00027286,10]
[379192746,1755181843430,-190310.13,0.00027287,2]
[379192748,1755181843440,-1000.0,0.00027297,2]
[379192750,1755181843450,-10000.0,0.00027297,2]
[379192752,1755181843459,-161.75804296,0.00027297,2]
[379192754,1755181843469,-578.58940122,0.00027297,2]
[379192756,1755181843479,-1493.18386654,0.00027297,2]
[379192758,1755181843489,-301.02765107,0.00027297,2]
[379192760,1755181843500,-809.3425484,0.00027297,2]
[379192762,1755181843511,-1704.16043509,0.00027297,2]
[379192764,1755181843520,-861.26,0.000273,2]
[379192766,1755181843530,-150.0,0.00027301,2]
[379192768,1755181843540,-150.0,0.00027311,2]
[379192770,1755181843550,-150.0,0.00027318,2]
[379192772,1755181843560,-150.0,0.0002732,2]
[379192774,1755181843569,-8440.806,0.00027328,16]
[379192776,1755181843579,-449.248,0.00027328,16]
[379192810,1755181843881,-1000.0,0.00027332,2]
[379192813,1755181843894,-150.0,0.00027342,2]
[379192815,1755181843903,-986.78234034,0.00027343,120]
[379192817,1755181843913,-1768.4969808,0.00027343,120]
[379192819,1755181843922,-150.0,0.00027347,2]
[379192821,1755181843932,-6963.11514828,0.00027349,2]
[379192823,1755181843942,-150.0,0.00027351,2]
[379192825,1755181843952,-150.0,0.00027355,2]
[379192827,1755181843962,-150.0,0.00027366,2]
[379192829,1755181843971,-150.0,0.00027367,2]
[379192831,1755181843981,-151.0,0.0002737,2]
[379192833,1755181843990,-350.0,0.0002737,2]
[379192835,1755181844003,-500.0,0.00027373,2]
[379192837,1755181844015,-500.0,0.00027373,2]
[379192839,1755181844025,-500.0,0.00027373,2]
[379192841,1755181844034,-500.0,0.00027373,2]
[379192843,1755181844043,-159.89969323,0.00027373,2]
[379192845,1755181844054,-500.0,0.00027373,2]
[379192847,1755181844064,-201.37027176,0.00027373,2]
[379192849,1755181844074,-500.0,0.00027373,2]
[379192851,1755181844085,-500.0,0.00027373,2]
[379192853,1755181844094,-500.0,0.00027373,2]
[379192855,1755181844104,-159.89849516,0.00027373,2]
[379192857,1755181844114,-500.0,0.00027373,2]
[379192859,1755181844125,-159.89948746,0.00027373,2]
[379192861,1755181844135,-500.0,0.00027373,2]
[379192863,1755181844144,-159.91133053,0.00027373,2]
[379192865,1755181844154,-159.89909214,0.00027373,2]
[379192867,1755181844165,-500.0,0.00027373,2]
[379192869,1755181844176,-500.0,0.00027373,2]
[379192871,1755181844185,-160.33307265,0.00027373,2]
[379192873,1755181844195,-159.91353221,0.00027373,2]
[379192875,1755181844204,-159.88666784,0.00027373,2]
[379192877,1755181844213,-159.91358161,0.00027373,2]
[379192879,1755181844223,-159.89849647,0.00027373,2]
[379192881,1755181844232,-500.0,0.00027373,2]
[379192883,1755181844242,-530.09559838,0.00027373,2]
[379192885,1755181844251,-804.23,0.00027386,2]
[379192887,1755181844260,-804.23,0.00027386,2]
[379192890,1755181844270,-804.23,0.00027386,2]
[379192892,1755181844280,-1083.01783961,0.00027387,2]
[379192893,1755181844289,-1070.7873475,0.00027394,2]
[379192896,1755181844299,-8024.4154739,0.00027394,2]
[379192898,1755181844308,-2416.2853706,0.00027394,2]
[379192900,1755181844318,-158.588,0.00027396,2]
[379192901,1755181844327,-1000.0,0.00027396,2]
[379192904,1755181844336,-150.0,0.00027396,2]
[379192906,1755181844347,-804.23,0.00027396,2]
[379192908,1755181844357,-804.23,0.00027396,2]
[379192910,1755181844366,-804.23,0.00027396,2]
[379192912,1755181844379,-804.23,0.00027396,2]
[379192914,1755181844389,-804.23,0.00027396,2]
[379192916,1755181844399,-804.23,0.00027396,2]
[379192918,1755181844408,-804.23,0.00027396,2]
[379192920,1755181844418,-804.23,0.00027396,2]
[379192922,1755181844427,-508.71039,0.00027397,7]
[379192924,1755181844437,-508.71039,0.00027397,7]
[379192926,1755181844449,-315.425484,0.00027397,7]
[379192928,1755181844459,-151.0,0.00027397,7]
[379192930,1755181844469,-632.866916,0.00027397,7]
[379192932,1755181844478,-315.425484,0.00027397,7]
[379192934,1755181844488,-151.0,0.00027397,7]
[379192936,1755181844498,-632.866916,0.00027397,7]
[379192938,1755181844508,-400.0,0.00027397,2]
[379192940,1755181844517,-400.0,0.00027397,2]
[379192942,1755181844527,-400.0,0.00027397,2]
[379192945,1755181844537,-151.0,0.00027397,7]
[379192947,1755181844548,-400.0,0.00027397,2]
[379192949,1755181844557,-400.0,0.00027397,2]
[379192951,1755181844567,-151.0,0.00027397,7]
[379192953,1755181844576,-400.0,0.00027397,2]